[Event "Late-Titled-Tuesday-Blitz-October-10-2023"]
[Site "Chess.com"]
[Date "2023.10.10"]
[Round "6"]
[White "Oleksandr_Bortnyk"]
[Black "NFChess13"]
[Result "1-0"]
[WhiteElo "3031"]
[BlackElo "2632"]
[TimeControl "180+1"]
[EndTime "15:00:02 PDT"]
[Termination "Oleksandr_Bortnyk won by resignation"]

1. f3 {[%clk 0:02:59.9]} 1... e5 {[%clk 0:02:58.7]} 2. g3 {[%clk 0:03:00.3]}
2... d5 {[%clk 0:02:58.8]} 3. Nh3 {[%clk 0:03:01]} 3... h5 {[%clk 0:02:58.9]} 4.
Bg2 {[%clk 0:03:01]} 4... h4 {[%clk 0:02:59.2]} 5. g4 {[%clk 0:03:01.6]} 5...
Nc6 {[%clk 0:02:58.2]} 6. d3 {[%clk 0:03:02]} 6... d4 {[%clk 0:02:57.4]} 7. O-O
{[%clk 0:03:01.5]} 7... Nf6 {[%clk 0:02:55.4]} 8. Bg5 {[%clk 0:03:00.5]} 8...
Be7 {[%clk 0:02:55.2]} 9. c4 {[%clk 0:03:00.6]} 9... Nd7 {[%clk 0:02:34.4]} 10.
Bc1 {[%clk 0:02:58.3]} 10... Nc5 {[%clk 0:02:32.4]} 11. a3 {[%clk 0:02:57.9]}
11... a5 {[%clk 0:02:31.6]} 12. Nd2 {[%clk 0:02:58.4]} 12... Ne6 {[%clk
0:02:24.4]} 13. Ne4 {[%clk 0:02:58.2]} 13... g5 {[%clk 0:02:23.9]} 14. Rb1
{[%clk 0:02:56.8]} 14... a4 {[%clk 0:02:23.8]} 15. Bd2 {[%clk 0:02:57.1]} 15...
f6 {[%clk 0:02:21.7]} 16. Qc2 {[%clk 0:02:51.6]} 16... b6 {[%clk 0:02:16]} 17.
f4 {[%clk 0:02:51]} 17... Nxf4 {[%clk 0:02:05.7]} 18. Nxf6+ {[%clk 0:02:48.7]}
18... Bxf6 {[%clk 0:02:06.6]} 19. Bxc6+ {[%clk 0:02:45.5]} 19... Bd7 {[%clk
0:02:06.4]} 20. Nxf4 {[%clk 0:02:38.7]} 20... gxf4 {[%clk 0:01:59.4]} 21. Bxa8
{[%clk 0:02:39.6]} 21... Qxa8 {[%clk 0:01:59.2]} 22. h3 {[%clk 0:02:39.8]} 22...
Rg8 {[%clk 0:01:56.5]} 23. Rf2 {[%clk 0:02:36.3]} 23... Be7 {[%clk 0:01:27]} 24.
Rbf1 {[%clk 0:02:21.4]} 24... Bd6 {[%clk 0:01:26.9]} 25. b4 {[%clk 0:02:16.1]}
25... axb3 {[%clk 0:01:25.1]} 26. Qxb3 {[%clk 0:02:16.4]} 26... Rg6 {[%clk
0:01:19.4]} 27. Be1 {[%clk 0:01:49]} 27... Ba4 {[%clk 0:01:18.7]} 28. Qa2 {[%clk
0:01:46.3]} 28... e4 {[%clk 0:01:16.1]} 29. c5 {[%clk 0:01:40.6]} 29... bxc5
{[%clk 0:01:13.9]} 30. Rxf4 {[%clk 0:01:40.8]} 30... Bxf4 {[%clk 0:01:13.7]} 31.
Rxf4 {[%clk 0:01:41.7]} 31... Rg7 {[%clk 0:01:00.4]} 32. Qe6+ {[%clk 0:01:40.5]}
1-0

[Event "Late-Titled-Tuesday-Blitz-October-10-2023"]
[Site "Chess.com"]
[Date "2023.10.10"]
[Round "6"]
[White "Lady_Nika"]
[Black "Binary010"]
[Result "0-1"]
[WhiteElo "2566"]
[BlackElo "2833"]
[TimeControl "180+1"]
[EndTime "15:00:03 PDT"]
[Termination "Binary010 won by resignation"]

1. e4 {[%clk 0:03:00.9]} 1... c5 {[%clk 0:02:59.7]} 2. Nc3 {[%clk 0:03:00.8]}
2... d6 {[%clk 0:03:00.1]} 3. g3 {[%clk 0:03:01.1]} 3... g6 {[%clk 0:02:58.4]}
4. Bg2 {[%clk 0:03:01.4]} 4... Nc6 {[%clk 0:02:59]} 5. d3 {[%clk 0:03:01.4]}
5... Bg7 {[%clk 0:02:59.3]} 6. f4 {[%clk 0:03:00.5]} 6... e6 {[%clk 0:02:58]} 7.
Nf3 {[%clk 0:03:01]} 7... Nge7 {[%clk 0:02:58.2]} 8. O-O {[%clk 0:03:00.5]} 8...
O-O {[%clk 0:02:58.3]} 9. Rb1 {[%clk 0:02:55.2]} 9... Rb8 {[%clk 0:02:55]} 10.
Ne2 {[%clk 0:02:54.9]} 10... b5 {[%clk 0:02:53]} 11. Be3 {[%clk 0:02:50.2]}
11... b4 {[%clk 0:02:51.6]} 12. g4 {[%clk 0:02:47.4]} 12... f5 {[%clk
0:02:38.1]} 13. h3 {[%clk 0:02:44.8]} 13... fxe4 {[%clk 0:01:58.5]} 14. dxe4
{[%clk 0:02:44.3]} 14... Ba6 {[%clk 0:01:59.2]} 15. Rf2 {[%clk 0:02:39.6]} 15...
Qc7 {[%clk 0:01:43.7]} 16. Ng3 {[%clk 0:02:38.8]} 16... Rbd8 {[%clk 0:01:42.3]}
17. Qe1 {[%clk 0:02:37.9]} 17... Nd4 {[%clk 0:01:35.8]} 18. Kh2 {[%clk
0:02:30.7]} 18... d5 {[%clk 0:01:31.4]} 19. e5 {[%clk 0:02:23.5]} 19... Nxf3+
{[%clk 0:01:29]} 20. Bxf3 {[%clk 0:02:23.1]} 20... g5 {[%clk 0:01:17.4]} 21.
fxg5 {[%clk 0:01:54.1]} 21... Bxe5 {[%clk 0:01:15.3]} 22. Qg1 {[%clk 0:01:53.7]}
22... d4 {[%clk 0:01:09.6]} 23. Bd2 {[%clk 0:01:52.9]} 23... Nd5 {[%clk
0:00:54]} 24. Bxd5 {[%clk 0:01:51.9]} 24... Bxg3+ {[%clk 0:00:53]} 25. Kh1
{[%clk 0:01:45.7]} 25... Bxf2 {[%clk 0:00:45.7]} 26. Bxe6+ {[%clk 0:01:45.4]}
26... Kh8 {[%clk 0:00:45.8]} 27. Qg2 {[%clk 0:01:45.4]} 27... Bb7 {[%clk
0:00:45.6]} 0-1

[Event "Late-Titled-Tuesday-Blitz-October-10-2023"]
[Site "Chess.com"]
[Date "2023.10.10"]
[Round "6"]
[White "elcala"]
[Black "Dr_crypt"]
[Result "0-1"]
[WhiteElo "1759"]
[BlackElo "2399"]
[TimeControl "180+1"]
[EndTime "15:00:11 PDT"]
[Termination "Dr_crypt won by resignation"]

1. d4 {[%clk 0:02:43.9]} 1... Nf6 {[%clk 0:02:57.3]} 2. Nf3 {[%clk 0:02:37.3]}
2... e6 {[%clk 0:02:57]} 3. Bf4 {[%clk 0:02:38.2]} 3... c5 {[%clk 0:02:55.2]} 4.
c3 {[%clk 0:02:36.8]} 4... b6 {[%clk 0:02:54.6]} 5. e3 {[%clk 0:02:36.9]} 5...
cxd4 {[%clk 0:02:53.5]} 6. cxd4 {[%clk 0:02:35]} 6... Bb7 {[%clk 0:02:50.1]} 7.
Nbd2 {[%clk 0:02:33.5]} 7... d6 {[%clk 0:02:50.4]} 8. Bb5+ {[%clk 0:02:27.3]}
8... Nbd7 {[%clk 0:02:49.3]} 9. O-O {[%clk 0:02:24.9]} 9... Be7 {[%clk
0:02:48.6]} 10. Re1 {[%clk 0:02:17.1]} 10... O-O {[%clk 0:02:42.1]} 11. e4
{[%clk 0:02:17.1]} 11... Rc8 {[%clk 0:02:36.8]} 12. e5 {[%clk 0:02:12.1]} 12...
dxe5 {[%clk 0:02:31.8]} 13. dxe5 {[%clk 0:02:07.8]} 13... Nd5 {[%clk 0:02:30.2]}
14. Bg3 {[%clk 0:02:02.3]} 14... Nc5 {[%clk 0:02:23.9]} 15. Rc1 {[%clk
0:01:51.6]} 15... a6 {[%clk 0:02:22.2]} 16. Bc4 {[%clk 0:01:47.6]} 16... b5
{[%clk 0:02:22.1]} 17. Bxd5 {[%clk 0:01:44.1]} 17... Bxd5 {[%clk 0:02:19.4]} 18.
Nb3 {[%clk 0:01:44.6]} 18... Nxb3 {[%clk 0:02:16.2]} 19. axb3 {[%clk 0:01:43.1]}
19... Rxc1 {[%clk 0:02:14.1]} 20. Qxc1 {[%clk 0:01:42.5]} 20... Bxb3 {[%clk
0:02:14.6]} 21. Qc3 {[%clk 0:01:36.1]} 21... Bd5 {[%clk 0:02:13.4]} 22. Nd4
{[%clk 0:01:33.4]} 22... Qc8 {[%clk 0:02:10.5]} 23. Qd3 {[%clk 0:01:31.3]} 23...
Qb7 {[%clk 0:02:10.2]} 24. f3 {[%clk 0:01:30.5]} 24... Rd8 {[%clk 0:02:10.3]}
25. Qe3 {[%clk 0:01:28.4]} 25... Bc5 {[%clk 0:02:09.3]} 26. Bf2 {[%clk
0:01:24.9]} 26... Bxf3 {[%clk 0:01:59.1]} 27. gxf3 {[%clk 0:01:21.6]} 27... Bxd4
{[%clk 0:01:57.9]} 28. Qxd4 {[%clk 0:01:21.7]} 28... Rxd4 {[%clk 0:01:57.1]} 29.
Bxd4 {[%clk 0:01:22.6]} 29... Qxf3 {[%clk 0:01:56.3]} 30. Bf2 {[%clk 0:01:21.4]}
30... Qg4+ {[%clk 0:01:49.5]} 31. Kh1 {[%clk 0:01:18.3]} 31... h5 {[%clk
0:01:50.4]} 32. Re3 {[%clk 0:01:09.4]} 32... h4 {[%clk 0:01:48.9]} 33. b3 {[%clk
0:00:58.7]} 33... h3 {[%clk 0:01:48.8]} 34. Rg3 {[%clk 0:00:55.6]} 34... Qe4+
{[%clk 0:01:46]} 35. Kg1 {[%clk 0:00:54]} 35... Qb1+ {[%clk 0:01:46]} 0-1

[Event "Late-Titled-Tuesday-Blitz-October-10-2023"]
[Site "Chess.com"]
[Date "2023.10.10"]
[Round "6"]
[White "arturdailima"]
[Black "ritanovikova"]
[Result "1/2-1/2"]
[WhiteElo "2298"]
[BlackElo "2106"]
[TimeControl "180+1"]
[EndTime "15:00:16 PDT"]
[Termination "Game drawn by agreement"]

1. c4 {[%clk 0:03:00.9]} 1... c5 {[%clk 0:03:00]} 2. Nc3 {[%clk 0:03:01.3]} 2...
Nc6 {[%clk 0:03:00.3]} 3. g3 {[%clk 0:03:01.9]} 3... g6 {[%clk 0:03:00.9]} 4.
Bg2 {[%clk 0:03:02.1]} 4... Bg7 {[%clk 0:03:01]} 5. Nf3 {[%clk 0:03:01.9]} 5...
Nf6 {[%clk 0:03:00.7]} 6. d4 {[%clk 0:03:00.5]} 6... cxd4 {[%clk 0:02:59.9]} 7.
Nxd4 {[%clk 0:03:01.4]} 7... O-O {[%clk 0:03:00.2]} 8. O-O {[%clk 0:02:57.7]}
8... d6 {[%clk 0:02:58.2]} 9. Nxc6 {[%clk 0:02:57.1]} 9... bxc6 {[%clk
0:02:58.4]} 10. Bxc6 {[%clk 0:02:58]} 10... Rb8 {[%clk 0:02:58.3]} 11. Bg2
{[%clk 0:02:58.4]} 11... a6 {[%clk 0:02:56.8]} 12. Qc2 {[%clk 0:02:53.1]} 12...
Qc7 {[%clk 0:02:55.8]} 13. b3 {[%clk 0:02:52.1]} 13... Bf5 {[%clk 0:02:54]} 14.
e4 {[%clk 0:02:52]} 14... Be6 {[%clk 0:02:50.6]} 15. Bb2 {[%clk 0:02:51.8]}
15... Nd7 {[%clk 0:02:45.8]} 16. Nd5 {[%clk 0:02:51.7]} 16... Bxd5 {[%clk
0:02:45.6]} 17. Bxg7 {[%clk 0:02:50.5]} 17... Kxg7 {[%clk 0:02:43.9]} 18. exd5
{[%clk 0:02:49.8]} 18... Nf6 {[%clk 0:02:42.9]} 19. Rfe1 {[%clk 0:02:49.4]}
19... Rfe8 {[%clk 0:02:43]} 20. Re2 {[%clk 0:02:46.3]} 20... a5 {[%clk
0:02:36.7]} 21. Rae1 {[%clk 0:02:46.5]} 21... Kf8 {[%clk 0:02:35.6]} 22. Qc1
{[%clk 0:02:42.5]} 22... Ng8 {[%clk 0:02:29.5]} 23. h4 {[%clk 0:02:39]} 23... a4
{[%clk 0:02:29.4]} 24. Qc3 {[%clk 0:02:38.2]} 24... axb3 {[%clk 0:02:27.4]} 25.
axb3 {[%clk 0:02:39.1]} 25... Qb6 {[%clk 0:02:23.9]} 26. Re3 {[%clk 0:02:36.7]}
26... Nf6 {[%clk 0:02:21.7]} 27. Bf3 {[%clk 0:02:36.7]} 27... Rb7 {[%clk
0:02:17.9]} 28. h5 {[%clk 0:02:35.8]} 28... Reb8 {[%clk 0:02:16.6]} 29. hxg6
{[%clk 0:02:34.6]} 29... hxg6 {[%clk 0:02:16.2]} 30. Kg2 {[%clk 0:02:28.7]}
30... Qxb3 {[%clk 0:02:14.8]} 31. Qxb3 {[%clk 0:02:29.6]} 31... Rxb3 {[%clk
0:02:14.8]} 32. Rxe7 {[%clk 0:02:30.2]} 32... g5 {[%clk 0:02:08.9]} 33. Rc7
{[%clk 0:02:28.4]} 33... g4 {[%clk 0:02:07.3]} 34. Bd1 {[%clk 0:02:28.2]} 34...
Rb1 {[%clk 0:02:01.8]} 35. Ree7 {[%clk 0:02:26.4]} 35... Rxd1 {[%clk 0:01:53.3]}
36. Rxf7+ {[%clk 0:02:26.8]} 36... Kg8 {[%clk 0:01:53.1]} 37. Rxf6 {[%clk
0:02:27.7]} 37... Rd4 {[%clk 0:01:47.9]} 38. Rxd6 {[%clk 0:02:27.1]} 38... Rf8
{[%clk 0:01:45.8]} 39. Rg6+ {[%clk 0:02:26.4]} 39... Kh8 {[%clk 0:01:46]} 40.
Rh6+ {[%clk 0:02:27.3]} 40... Kg8 {[%clk 0:01:46]} 41. Rg6+ {[%clk 0:02:27]}
41... Kh8 {[%clk 0:01:46.5]} 42. d6 {[%clk 0:02:27.9]} 42... Rd2 {[%clk
0:01:42]} 43. Rh6+ {[%clk 0:02:25.1]} 43... Kg8 {[%clk 0:01:42.4]} 44. Rg6+
{[%clk 0:02:19.9]} 44... Kh8 {[%clk 0:01:42.2]} 45. Rxg4 {[%clk 0:01:43.3]}
45... Rfxf2+ {[%clk 0:01:41.1]} 46. Kg1 {[%clk 0:01:41.6]} 46... Rg2+ {[%clk
0:01:38.2]} 47. Kf1 {[%clk 0:01:41.8]} 47... Rgf2+ {[%clk 0:01:38.2]} 48. Ke1
{[%clk 0:01:42.3]} 48... Rfe2+ {[%clk 0:01:38.6]} 49. Kf1 {[%clk 0:01:43.2]}
1/2-1/2

[Event "Late-Titled-Tuesday-Blitz-October-10-2023"]
[Site "Chess.com"]
[Date "2023.10.10"]
[Round "6"]
[White "jaskol95"]
[Black "kuli4ik"]
[Result "0-1"]
[WhiteElo "2572"]
[BlackElo "2924"]
[TimeControl "180+1"]
[EndTime "15:00:18 PDT"]
[Termination "kuli4ik won by resignation"]

1. e4 {[%clk 0:03:00.9]} 1... g6 {[%clk 0:02:53]} 2. d4 {[%clk 0:03:00.4]} 2...
Bg7 {[%clk 0:02:52.7]} 3. Nc3 {[%clk 0:03:00.5]} 3... d6 {[%clk 0:02:52.6]} 4.
Bf4 {[%clk 0:02:56.9]} 4... a6 {[%clk 0:02:50.6]} 5. Qd2 {[%clk 0:02:50.4]} 5...
b5 {[%clk 0:02:48.5]} 6. a3 {[%clk 0:02:50.8]} 6... Bb7 {[%clk 0:02:48.1]} 7. f3
{[%clk 0:02:51]} 7... Nd7 {[%clk 0:02:48]} 8. Be2 {[%clk 0:02:37.9]} 8... c5
{[%clk 0:02:47.9]} 9. d5 {[%clk 0:02:35.7]} 9... Ngf6 {[%clk 0:02:38]} 10. Nh3
{[%clk 0:02:34.4]} 10... O-O {[%clk 0:02:27.3]} 11. Nf2 {[%clk 0:02:29.8]} 11...
c4 {[%clk 0:02:15]} 12. O-O {[%clk 0:02:24.5]} 12... Rc8 {[%clk 0:02:14.8]} 13.
Bh6 {[%clk 0:02:06.5]} 13... Nc5 {[%clk 0:02:10.1]} 14. Bxg7 {[%clk 0:02:05.9]}
14... Kxg7 {[%clk 0:02:09.7]} 15. Ncd1 {[%clk 0:01:58]} 15... e6 {[%clk
0:02:04.9]} 16. dxe6 {[%clk 0:01:55.9]} 16... Nxe6 {[%clk 0:02:03.7]} 17. Ne3
{[%clk 0:01:52.3]} 17... Qb6 {[%clk 0:02:03.3]} 18. Rad1 {[%clk 0:01:44.3]}
18... Rfd8 {[%clk 0:02:03.1]} 19. Nd5 {[%clk 0:01:35.1]} 19... Bxd5 {[%clk
0:01:54.8]} 20. exd5 {[%clk 0:01:35]} 20... Nc7 {[%clk 0:01:55]} 21. Qc3 {[%clk
0:00:59.9]} 21... Re8 {[%clk 0:01:51.6]} 22. Rd2 {[%clk 0:00:54.3]} 22... Re3
{[%clk 0:01:50.1]} 23. Bd3 {[%clk 0:00:26.5]} 23... Nxd5 {[%clk 0:01:43.9]} 0-1

[Event "Late-Titled-Tuesday-Blitz-October-10-2023"]
[Site "Chess.com"]
[Date "2023.10.10"]
[Round "6"]
[White "baki83"]
[Black "Hrant_ChessMood"]
[Result "0-1"]
[WhiteElo "2815"]
[BlackElo "2939"]
[TimeControl "180+1"]
[EndTime "15:00:28 PDT"]
[Termination "Hrant_ChessMood won by resignation"]

1. e4 {[%clk 0:03:00.9]} 1... c5 {[%clk 0:02:59.3]} 2. Nf3 {[%clk 0:03:00.9]}
2... Nc6 {[%clk 0:02:58.8]} 3. Bb5 {[%clk 0:03:00.8]} 3... g6 {[%clk 0:02:59.4]}
4. O-O {[%clk 0:03:00.7]} 4... Bg7 {[%clk 0:02:59.4]} 5. Nc3 {[%clk 0:03:01]}
5... e5 {[%clk 0:02:57.9]} 6. Bxc6 {[%clk 0:02:58.4]} 6... dxc6 {[%clk
0:02:57.3]} 7. a3 {[%clk 0:02:58.4]} 7... Qe7 {[%clk 0:02:48.9]} 8. b4 {[%clk
0:02:57.7]} 8... Nf6 {[%clk 0:02:49.4]} 9. bxc5 {[%clk 0:02:57.3]} 9... O-O
{[%clk 0:02:49.3]} 10. a4 {[%clk 0:02:56.8]} 10... Bg4 {[%clk 0:02:42.7]} 11. h3
{[%clk 0:02:56.5]} 11... Bxf3 {[%clk 0:02:42.4]} 12. Qxf3 {[%clk 0:02:56.1]}
12... Nd7 {[%clk 0:02:43.3]} 13. Ba3 {[%clk 0:02:53.9]} 13... Rfd8 {[%clk
0:02:33.3]} 14. Qe3 {[%clk 0:02:47.4]} 14... Nf8 {[%clk 0:02:32.6]} 15. Ne2
{[%clk 0:02:31.1]} 15... Ne6 {[%clk 0:02:32.3]} 16. Rab1 {[%clk 0:02:30.4]}
16... Rd7 {[%clk 0:02:29.1]} 17. d3 {[%clk 0:02:17.5]} 17... Bf8 {[%clk
0:02:18]} 18. Nc1 {[%clk 0:02:14.1]} 18... Nd4 {[%clk 0:02:16.5]} 19. Rb2 {[%clk
0:01:57.6]} 19... Qh4 {[%clk 0:02:13.2]} 20. Qg3 {[%clk 0:01:35]} 20... Qf6
{[%clk 0:02:03.7]} 21. f4 {[%clk 0:01:15.7]} 21... exf4 {[%clk 0:01:44.4]} 22.
Rxf4 {[%clk 0:01:16.6]} 22... Qe5 {[%clk 0:01:36.7]} 23. c3 {[%clk 0:00:51.9]}
23... Ne6 {[%clk 0:01:22.1]} 24. Rf3 {[%clk 0:00:48]} 24... Bxc5+ {[%clk
0:01:18.2]} 25. Bxc5 {[%clk 0:00:45.9]} 25... Qxc5+ {[%clk 0:01:19.1]} 0-1

[Event "Late-Titled-Tuesday-Blitz-October-10-2023"]
[Site "Chess.com"]
[Date "2023.10.10"]
[Round "6"]
[White "The_Princess_Moon"]
[Black "MaxLeto"]
[Result "1-0"]
[WhiteElo "2306"]
[BlackElo "2486"]
[TimeControl "180+1"]
[EndTime "15:00:29 PDT"]
[Termination "The_Princess_Moon won by resignation"]

1. e4 {[%clk 0:02:51.4]} 1... c5 {[%clk 0:02:56.1]} 2. Nf3 {[%clk 0:02:51.4]}
2... d6 {[%clk 0:02:56.3]} 3. c3 {[%clk 0:02:51.6]} 3... Nf6 {[%clk 0:02:56.1]}
4. h3 {[%clk 0:02:52]} 4... Nbd7 {[%clk 0:02:55.9]} 5. Bd3 {[%clk 0:02:52.6]}
5... b6 {[%clk 0:02:55.4]} 6. Bc2 {[%clk 0:02:52.9]} 6... Bb7 {[%clk 0:02:55.9]}
7. Qe2 {[%clk 0:02:53]} 7... g6 {[%clk 0:02:55.6]} 8. O-O {[%clk 0:02:52.9]}
8... Bg7 {[%clk 0:02:56.2]} 9. d4 {[%clk 0:02:53]} 9... e5 {[%clk 0:02:55]} 10.
d5 {[%clk 0:02:41.5]} 10... O-O {[%clk 0:02:52.5]} 11. c4 {[%clk 0:02:40.5]}
11... Nh5 {[%clk 0:02:50.8]} 12. Bg5 {[%clk 0:02:38.7]} 12... Qe8 {[%clk
0:02:21.9]} 13. Ba4 {[%clk 0:02:36.3]} 13... h6 {[%clk 0:02:17]} 14. Bd2 {[%clk
0:02:33.1]} 14... Nf4 {[%clk 0:02:12.1]} 15. Bxf4 {[%clk 0:02:31.7]} 15... exf4
{[%clk 0:02:12.4]} 16. Nc3 {[%clk 0:02:32.2]} 16... g5 {[%clk 0:02:03.3]} 17.
Rfe1 {[%clk 0:02:29]} 17... Qe7 {[%clk 0:01:56.3]} 18. Bxd7 {[%clk 0:02:27]}
18... Qxd7 {[%clk 0:01:56.4]} 19. e5 {[%clk 0:02:21.8]} 19... Rae8 {[%clk
0:01:56.7]} 20. e6 {[%clk 0:02:20]} 20... fxe6 {[%clk 0:00:59.3]} 21. dxe6
{[%clk 0:02:20.9]} 21... Qc8 {[%clk 0:00:23.1]} 22. Nd5 {[%clk 0:02:16.1]} 22...
Be5 {[%clk 0:00:20.2]} 23. e7 {[%clk 0:02:10.6]} 23... Rf5 {[%clk 0:00:18.7]}
24. Nxe5 {[%clk 0:02:06.5]} 24... Rxe5 {[%clk 0:00:18.2]} 25. Nf6+ {[%clk
0:01:54.1]} 25... Kf7 {[%clk 0:00:15.6]} 26. Nxe8 {[%clk 0:01:53.5]} 26... Rxe2
{[%clk 0:00:14.8]} 27. Nxd6+ {[%clk 0:01:53.2]} 27... Kxe7 {[%clk 0:00:07.6]}
28. Nxc8+ {[%clk 0:01:52.8]} 28... Bxc8 {[%clk 0:00:07.7]} 29. Rxe2+ {[%clk
0:01:53.7]} 1-0

[Event "Late-Titled-Tuesday-Blitz-October-10-2023"]
[Site "Chess.com"]
[Date "2023.10.10"]
[Round "6"]
[White "Alex_Sahakyan2006"]
[Black "temus_galaktionov"]
[Result "1-0"]
[WhiteElo "2753"]
[BlackElo "2876"]
[TimeControl "180+1"]
[EndTime "15:00:34 PDT"]
[Termination "Alex_Sahakyan2006 won by checkmate"]

1. e4 {[%clk 0:03:00.9]} 1... c6 {[%clk 0:03:00.9]} 2. d4 {[%clk 0:02:57.7]}
2... g6 {[%clk 0:03:00.8]} 3. Nc3 {[%clk 0:02:56.9]} 3... Bg7 {[%clk 0:03:00.7]}
4. Nf3 {[%clk 0:02:54.9]} 4... d6 {[%clk 0:03:00.9]} 5. a4 {[%clk 0:02:53.6]}
5... Nd7 {[%clk 0:03:01]} 6. Bc4 {[%clk 0:02:53]} 6... e5 {[%clk 0:03:01]} 7.
dxe5 {[%clk 0:02:46.9]} 7... dxe5 {[%clk 0:03:01.9]} 8. Be3 {[%clk 0:02:40.1]}
8... Ngf6 {[%clk 0:03:01.5]} 9. Qd6 {[%clk 0:02:33.9]} 9... Qe7 {[%clk
0:03:01.1]} 10. Qxe7+ {[%clk 0:02:30.8]} 10... Kxe7 {[%clk 0:03:02]} 11. a5
{[%clk 0:02:27.5]} 11... Ng4 {[%clk 0:02:50.4]} 12. Bg5+ {[%clk 0:02:27]} 12...
Bf6 {[%clk 0:02:48.2]} 13. Bc1 {[%clk 0:02:27.6]} 13... Nc5 {[%clk 0:02:43.1]}
14. h3 {[%clk 0:02:26.9]} 14... h5 {[%clk 0:02:37.1]} 15. hxg4 {[%clk
0:02:25.6]} 15... hxg4 {[%clk 0:02:38]} 16. Rxh8 {[%clk 0:02:24.4]} 16... Bxh8
{[%clk 0:02:38.9]} 17. Be3 {[%clk 0:02:23.2]} 17... Ne6 {[%clk 0:02:35]} 18. Nd2
{[%clk 0:02:23.3]} 18... Nd4 {[%clk 0:02:34.9]} 19. O-O-O {[%clk 0:02:21]} 19...
b5 {[%clk 0:02:35.2]} 20. Ba2 {[%clk 0:02:15.9]} 20... Be6 {[%clk 0:02:15.8]}
21. Bxe6 {[%clk 0:02:14.8]} 21... Kxe6 {[%clk 0:02:16.7]} 22. Nb3 {[%clk
0:02:14.7]} 22... Rd8 {[%clk 0:02:16.7]} 23. Bxd4 {[%clk 0:02:05.7]} 23... exd4
{[%clk 0:02:17.6]} 24. Ne2 {[%clk 0:02:06.5]} 24... c5 {[%clk 0:02:08.4]} 25.
Nxc5+ {[%clk 0:02:05.7]} 25... Ke5 {[%clk 0:02:08.9]} 26. f4+ {[%clk 0:02:00.4]}
26... gxf3 {[%clk 0:02:08.2]} 27. gxf3 {[%clk 0:02:01.3]} 27... g5 {[%clk
0:02:04.4]} 28. Nb3 {[%clk 0:01:53.6]} 28... Rc8 {[%clk 0:01:59.7]} 29. Nbxd4
{[%clk 0:01:53]} 29... a6 {[%clk 0:01:59.1]} 30. c3 {[%clk 0:01:53.1]} 30... g4
{[%clk 0:01:57]} 31. fxg4 {[%clk 0:01:52.4]} 31... Kxe4 {[%clk 0:01:56.9]} 32.
Rf1 {[%clk 0:01:52.4]} 32... Rc7 {[%clk 0:01:55.9]} 33. Kd2 {[%clk 0:01:50.7]}
33... Be5 {[%clk 0:01:54.9]} 34. Rh1 {[%clk 0:01:42.1]} 34... Rb7 {[%clk
0:01:49.8]} 35. b4 {[%clk 0:01:41]} 35... f6 {[%clk 0:01:45.4]} 36. Nc6 {[%clk
0:01:26.8]} 36... Rd7+ {[%clk 0:01:41.9]} 37. Ned4 {[%clk 0:01:26.8]} 37... Bf4+
{[%clk 0:01:42.1]} 38. Ke2 {[%clk 0:01:26.9]} 38... Rg7 {[%clk 0:01:42]} 39. Rg1
{[%clk 0:01:20.4]} 39... Rh7 {[%clk 0:01:42.2]} 40. Nf3 {[%clk 0:01:17.6]} 40...
Rc7 {[%clk 0:01:38.3]} 41. Rd1 {[%clk 0:01:07.9]} 41... Be3 {[%clk 0:01:33.6]}
42. Rd6 {[%clk 0:01:06.3]} 42... Bc1 {[%clk 0:01:24.5]} 43. Rd4# {[%clk
0:01:06.1]} 1-0

[Event "Late-Titled-Tuesday-Blitz-October-10-2023"]
[Site "Chess.com"]
[Date "2023.10.10"]
[Round "6"]
[White "FM_Kappeler"]
[Black "Alphafischer2019"]
[Result "0-1"]
[WhiteElo "2326"]
[BlackElo "2585"]
[TimeControl "180+1"]
[EndTime "15:00:38 PDT"]
[Termination "Alphafischer2019 won by checkmate"]

1. d4 {[%clk 0:03:00.9]} 1... Nf6 {[%clk 0:02:59.7]} 2. c4 {[%clk 0:03:01.1]}
2... c5 {[%clk 0:02:59.2]} 3. d5 {[%clk 0:03:00.8]} 3... e5 {[%clk 0:02:59.9]}
4. Nc3 {[%clk 0:03:00]} 4... d6 {[%clk 0:03:00.4]} 5. e4 {[%clk 0:02:59.6]} 5...
g6 {[%clk 0:03:01]} 6. Nf3 {[%clk 0:02:59.6]} 6... Bg7 {[%clk 0:03:00.7]} 7. g3
{[%clk 0:03:00]} 7... O-O {[%clk 0:03:00]} 8. Bg2 {[%clk 0:03:00.4]} 8... a6
{[%clk 0:02:59.8]} 9. a4 {[%clk 0:02:58]} 9... Ne8 {[%clk 0:03:00.3]} 10. O-O
{[%clk 0:02:55.9]} 10... h6 {[%clk 0:03:00.7]} 11. Ne1 {[%clk 0:02:55]} 11... f5
{[%clk 0:02:58.9]} 12. Nd3 {[%clk 0:02:50.4]} 12... Nd7 {[%clk 0:02:46.6]} 13.
f4 {[%clk 0:02:43.8]} 13... exf4 {[%clk 0:02:44.5]} 14. Nxf4 {[%clk 0:02:27.8]}
14... Ne5 {[%clk 0:02:44.2]} 15. Kh1 {[%clk 0:02:14.5]} 15... Nf6 {[%clk
0:02:43.8]} 16. exf5 {[%clk 0:02:03.5]} 16... Bxf5 {[%clk 0:02:42.9]} 17. Ne6
{[%clk 0:02:03.5]} 17... Bxe6 {[%clk 0:02:43.1]} 18. dxe6 {[%clk 0:02:03.5]}
18... Qe7 {[%clk 0:02:43]} 19. Nd5 {[%clk 0:02:00.3]} 19... Nxd5 {[%clk
0:02:40.5]} 20. cxd5 {[%clk 0:01:52.5]} 20... Rxf1+ {[%clk 0:02:38.7]} 21. Qxf1
{[%clk 0:01:51.4]} 21... Rf8 {[%clk 0:02:38.4]} 22. Qe2 {[%clk 0:01:49.4]} 22...
h5 {[%clk 0:02:33.4]} 23. Bf4 {[%clk 0:01:35.1]} 23... Ng4 {[%clk 0:02:28.9]}
24. Rf1 {[%clk 0:01:30]} 24... Be5 {[%clk 0:02:25.9]} 25. Bc1 {[%clk 0:01:10.3]}
25... Kg7 {[%clk 0:02:12.8]} 26. Bf3 {[%clk 0:00:47.2]} 26... Nh6 {[%clk
0:02:07.6]} 27. Bxh6+ {[%clk 0:00:41.8]} 27... Kxh6 {[%clk 0:02:07.3]} 28. Be4
{[%clk 0:00:37.3]} 28... Rxf1+ {[%clk 0:01:58.5]} 29. Qxf1 {[%clk 0:00:36.2]}
29... Bxb2 {[%clk 0:01:50.4]} 30. Qb1 {[%clk 0:00:23]} 30... Bd4 {[%clk
0:01:49.1]} 31. Bxg6 {[%clk 0:00:20.9]} 31... b5 {[%clk 0:01:47.6]} 32. Bf7
{[%clk 0:00:20.7]} 32... Qf6 {[%clk 0:01:47.6]} 33. axb5 {[%clk 0:00:15.2]}
33... Qf3# {[%clk 0:01:47.3]} 0-1